Cogmind - Beta 15 @@@ ROGUE MODE // 2025.10.11 @ 11:00:45 Player: satan5 Result: Destroyed by TQ-MXA(R) with Subdweller Laser Performance ------------- Evolutions (0) 0 Regions Visited (2) 400 Robots Destroyed (28) 140 Value Destroyed (687) 687 Prototype IDs (4) 80 Alien Tech Used (0) 0 Bonus (-78) -78 TOTAL SCORE: 1229 Bonus ------- Friendly Fire -78 Cogmind --------- Core Integrity 0/250 Matter 260/300 Energy 250/250 System Corruption 0% Temperature Cool (6) Movement Treading (160) Location -10/Subcaves Parts ------- > --- POWER (1) -------- Ion Engine > --- PROPULSION (2) --- Light Treads Light Treads > --- UTILITY (2) ------ Large Storage Unit Seismic Detector > --- WEAPON (2) ------- EM Pulse Gun Grenade Launcher > --- INVENTORY (15) --- Light Nuclear Core Aluminum Leg Aluminum Leg Aluminum Leg Hover Unit Hover Unit EM Pulse Gun Particle Gun Peak State ------------ > --- POWER ------------ Ion Engine > --- PROPULSION ------- Aluminum Leg Aluminum Leg > --- UTILITY ---------- Improved Heat Sink Large Storage Unit > --- WEAPON ----------- EM Pulse Gun Particle Gun > --- INVENTORY -------- Ion Engine Light Nuclear Core Light Treads Light Treads Aluminum Leg Aluminum Leg Aluminum Leg Hover Unit Hover Unit Seismic Detector EM Pulse Gun EM Pulse Gun EM Pulse Gun Grenade Launcher [Rating: 11] Favorites ----------- Power Ion Engine Engine Ion Engine Propulsion Aluminum Leg Treads Light Treads Leg Aluminum Leg Utility Large Storage Unit Device Seismic Detector Storage Large Storage Unit Weapon Medium Laser Energy Gun Medium Laser Ballistic Gun Assault Rifle Launcher Grenade Launcher Build | -11 -10 -10 ------- Run | Yrd Mat Sub Slots Evolved . | . . . Power . | . . . Propulsion . | . . . Utility . | . . . Weapon . | . . . Parts Attached 22 | 8 5 9 Power 2 | 1 . 1 Engine 2 | 1 . 1 Core . | . . . Reactor . | . . . Propulsion 7 | 2 3 2 Treads 2 | . . 2 Leg 5 | 2 3 . Wheel . | . . . Hover . | . . . Flight . | . . . Utility 5 | 2 1 2 Device 3 | 1 . 2 Storage 2 | 1 1 . Processor . | . . . Hackware . | . . . Protection . | . . . Artifact . | . . . Weapon 8 | 3 1 4 Energy Gun 6 | 2 1 3 Energy Cannon . | . . . Ballistic Gun 1 | 1 . . Ballistic Cannon . | . . . Launcher 1 | . . 1 Special Weapon . | . . . Impact Weapon . | . . . Slashing Weapon . | . . . Piercing Weapon . | . . . Special Melee Weapon . | . . . Unidentified Prototypes . | . . . Parts Lost 6 | . 1 5 Power 1 | . . 1 Propulsion . | . . . Utility 1 | . . 1 Weapon 4 | . 1 3 Highest Loss Streak 2 | . 1 2 To Critical Strikes 1 | . 1 . Average Backups 11 | 2 12 11 Power 1 | . 1 1 Propulsion 5 | 1 5 6 Utility . | . 1 . Weapon 3 | . 4 3 Tool/Special . | . . . Unused Backups 8 | . 1 7 Power 1 | . . 1 Propulsion 5 | . . 5 Utility 1 | . 1 . Weapon 1 | . . 1 Tool/Special . | . . . Average Slot Usage (%) 99 | . 100 99 Engine 13 | . 14 13 Treads 4 | . . 11 Leg 23 | . 28 16 Device 13 | . 14 13 Storage 14 | . 14 14 Energy Gun 21 | . 17 27 Ballistic Gun 5 | . 10 . Peak Build Rating 11 | 7 9 11 Average Rating 8 | 4 8 9 On Entrance 5 | . 7 9 Naked Turns . | . . . Heaviest Build 32 | 15 31 32 Greatest Support 40 | 20 20 40 Greatest Overweight (x) 3 | 3 1 1 Average Overweight (x) . | . . . Largest Inventory Capacity 15 | 8 15 15 Average Capacity 13 | 7 13 15 Most Carried 15 | 4 15 15 Average Carried 11 | 3 12 11 Final Capacity 15 | 8 15 15 Final Carried 15 | 4 15 8 Class Distribution -------------------- 65% | Mutant 34% | Scavenger-Mutant Dominant Class ---------------- Mutant | -10/Materials Scavenger-Mutant | -10/Subcaves Resources | -11 -10 -10 ----------- Run | Yrd Mat Sub Matter Collected 519 | 297 142 80 Remotely . | . . . Salvage Created 960 | 32 573 355 Parts 66 | 7 33 26 Haulers Intercepted 1 | . 1 . Recyclers Shooed 1 | 1 . . Parts Field Recycled . | . . . Retrieved Matter . | . . . Parts Self-Destructed 13 | . . 13 Prevented 1 | . . 1 Kills | -11 -10 -10 ------- Run | Yrd Mat Sub Combat Hostiles Destroyed 21 | . 12 9 Guns 20 | . 12 8 AOE 1 | . . 1 Classes Destroyed 9 | 1 5 3 Tunneler 2 | 2 . . Hauler 1 | . 1 . Operator 2 | . 2 . Watcher 2 | . 2 . Swarmer 7 | . 3 4 Grunt 9 | . 9 . Sentry 1 | . . 1 Subdweller 4 | . . 4 Scientist 1 | . . 1 Best Kill Streak 3 | 2 3 2 Combat Bots Only 3 | . 3 2 Max Kills in Single Turn 2 | 1 1 2 Gunslinging . | . . . Exploded 1 | . . 1 Melee . | . . . Uniques/NPCs Destroyed . | . . . Combat | -11 -10 -10 -------- Run | Yrd Mat Sub Hostile Shots Fired 96 | . 55 41 Missed 24 | . 15 9 Hits 72 | . 40 32 Projectile 72 | . 40 32 Critical Strikes 1 | . 1 . Damage Taken 1000 | . 420 580 Core 255 | . 90 165 Absorbed by Shields . | . . . Core Remaining (%) 100 | 100 . . Volleys Fired 82 | 8 45 29 Largest 2 | 2 2 2 Hottest 115 | 70 115 105 Shots Fired 163 | 16 89 58 Gun 160 | 16 89 55 Cannon . | . . . Launcher 3 | . . 3 Special . | . . . Kinetic 38 | 8 30 . Thermal 93 | 8 59 26 Explosive 3 | . . 3 Electromagnetic 29 | . . 29 Robot Hit Streak 11 | 4 11 10 Robot Miss Streak 3 | 2 3 1 Penetration Max . | . . . Secondary Targets . | . . . Shots Hit Robots 109 | 11 58 40 Core Hits 47 | 2 29 16 Critical Kills . | . . . Critical Parts Destroyed . | . . . Critical Strikes 5 | . 3 2 Burn 5 | . 3 2 Melee Attacks . | . . . Impact . | . . . Slashing . | . . . Piercing . | . . . Sneak Attacks . | . . . Combat Hostiles . | . . . Follow-up Attacks . | . . . Damage Inflicted 1556 | 131 764 661 Guns 1380 | 131 764 485 Cannons . | . . . Explosions 176 | . . 176 Melee . | . . . Ramming . | . . . Kinetic 317 | 58 259 . Thermal 881 | 73 505 303 Explosive 110 | . . 110 Electromagnetic 248 | . . 248 Impact . | . . . Slashing . | . . . Piercing . | . . . Highest Corruption . | . . . Average Corruption . | . . . Corruption Purged . | . . . Corruption Blocked . | . . . Overload Shots . | . . . Overflow Damage . | . . . Projectiles . | . . . Explosions . | . . . Melee . | . . . Knockbacks . | . . . Impact . | . . . Kinetic . | . . . Secondary . | . . . Self-Inflicted Damage 31 | . . 31 Shots 1 | . . 1 Rammed . | . . . Targets Rammed . | . . . Kicked . | . . . Crushed . | . . . Highest Temperature 304 | 54 304 3 Average Temperature 57 | 24 65 2 Received Heat Transfer 261 | . 147 114 Effects 3 | . 3 . Energy Bleed 2 | . 2 . Damage (minor) 1 | . 1 . Siege Activations . | . . . Martial Activations . | . . . Shielding Activations . | . . . Robots Disrupted . | . . . Combat Hostiles . | . . . Robots Corrupted . | . . . Combat Hostiles . | . . . Parts Fried . | . . . Impact Corruptions . | . . . Robots Melted . | . . . Combat Hostiles . | . . . Parts Melted 3 | . 3 . Heat Transferred 2640 | 222 1665 753 Parts Sabotaged . | . . . Parts Stolen . | . . . Parts Stripped . | . . . Power Chain Reactions 1 | . . 1 Alert | -11 -10 -10 ------- Run | Yrd Mat Sub Maximum Alert Level . | . . . Low Security (%) 100 | 100 100 . Level 1 . | . . . Level 2 . | . . . Level 3 . | . . . Level 4 . | . . . Level 5 . | . . . High Security . | . . . Max Security . | . . . Peak Influence 84 | 5 84 . Initial . | . . . Average 29 | 1 32 . Influence Increases 546 | 10 376 160 Destroy 0b10 Robot/C 340 | . 240 100 Destroy 0b10 Robot/NC 35 | 10 25 . Destroy Leader 66 | . 66 . Successful Hack 12 | . 12 . Destroy Structure 3 | . 3 . Lose Combat Pursuer 90 | . 30 60 Influence Decreases 546 | 10 314 222 Entered New Map 30 | . . 30 Time Decay 490 | 10 308 172 Lost Part 26 | . 6 20 Squads Dispatched 3 | . 3 . Investigation 1 | . 1 . Extermination . | . . . Reinforcement 2 | . 2 . Assault . | . . . Garrison . | . . . Intercept . | . . . Searches Triggered . | . . . Construction Impeded . | . . . Haulers Reinforced . | . . . Active Scanning Responses . | . . . Cargo Convoy Interrupts . | . . . Stealth | -11 -10 -10 --------- Run | Yrd Mat Sub Distress Signals . | . . . Communications Jammed . | . . . Distress Signals . | . . . Times Spotted 33 | . 22 11 Peak Tracking Total 4 | . 4 4 Tactical Retreats 3 | . 1 2 Traps | -11 -10 -10 ------- Run | Yrd Mat Sub Traps Triggered 1 | . 1 . Indirectly . | . . . Trap Hack Attempts . | . . . Triggered . | . . . Disarmed . | . . . Reprogrammed . | . . . Reused . | . . . Traps Extracted . | . . . Installed . | . . . Triggered . | . . . Machines | -11 -10 -10 ---------- Run | Yrd Mat Sub Machines Disabled . | . . . Max in Single Turn . | . . . Machines Repaired . | . . . Machines Dismantled . | . . . Machines Sabotaged . | . . . Overloaded Fab Kills . | . . . Hacking | -11 -10 -10 --------- Run | Yrd Mat Sub Machines Accessed 6 | . 5 1 Terminals 4 | . 4 . Fabricators . | . . . Repair Stations . | . . . Recycling Units 1 | . 1 . Scanalyzers . | . . . Garrison Access . | . . . Total Hacks 20 | . 17 3 Successful 11 | . 8 3 Failed 9 | . 9 . Catastrophic . | . . . Database Lockouts . | . . . Manual 11 | . 11 . Terminals 15 | . 15 . Fabricators . | . . . Repair Stations . | . . . Recycling Units 2 | . 2 . Scanalyzers . | . . . Garrison Access . | . . . Terminal Hacks 5 | . 2 3 Record 3 | . . 3 Prototype ID Bank 2 | . 2 . Fabricator Hacks . | . . . Repair Station Hacks . | . . . Recycling Unit Hacks 1 | . 1 . Retrieve Components 1 | . 1 . Scanalyzer . | . . . Garrison Access Hacks . | . . . Unauthorized Hacks 5 | . 5 . Terminals 5 | . 5 . Botnet 4 | . 4 . Operators 1 | . 1 . Fabricators . | . . . Repair Stations . | . . . Recycling Units . | . . . Scanalyzers . | . . . Garrison Access . | . . . Data Cores Recovered . | . . . Used . | . . . Hacking Detections 5 | . 5 . Full Trace Events . | . . . Feedback Events . | . . . Feedback Blocked . | . . . Robot Schematics Acquired . | . . . Robots Built . | . . . Authchips . | . . . Time . | . . . Total Robot Build Rating . | . . . Part Schematics Acquired . | . . . Parts Built . | . . . Authchips . | . . . Time . | . . . Total Part Build Rating . | . . . Parts Repaired . | . . . Time . | . . . Parts Recycled . | . . . Recycled Matter . | . . . Retrieved Matter . | . . . Retrieved Components 9 | . 9 . Parts Scanalyzed . | . . . Part Schematics Acquired . | . . . Parts Damaged . | . . . Bothacking | -11 -10 -10 ------------ Run | Yrd Mat Sub Used RIF Installer . | . . . Robots Hacked . | . . . Non-combat . | . . . Combat . | . . . Robot Hacks Applied . | . . . Relay Couplers Released . | . . . Fabnet Peak Effective % . | . . . Robots Rewired . | . . . Allies Hacked . | . . . Hacks Repelled . | . . . Allies | -11 -10 -10 -------- Run | Yrd Mat Sub Total Allies . | . . . Largest Group . | . . . Highest-Rated Group . | . . . Highest-Rated Ally . | . . . Total Orders . | . . . Ally Attacks . | . . . Total Damage . | . . . Kills . | . . . Allies Corrupted . | . . . Allies Melted . | . . . Intel | -11 -10 -10 ------- Run | Yrd Mat Sub Active Infowar (turns) 1737 | 14 1105 618 Optics 252 | . . 252 Seismic 1485 | 14 1105 366 Robot Analysis Total . | . . . Derelict Logs Recovered . | . . . Drone Launches . | . . . Drone Recoveries . | . . . Exploration | -11 -10 -10 ------------- Run | Yrd Mat Sub Turns Passed 2041 | 111 1105 825 Spaces Moved 971 | 51 513 407 Core 13 | 13 . . Treads 192 | . . 192 Legs 766 | 38 513 215 Wheels . | . . . Hover . | . . . Flight . | . . . Fastest Speed 50 | 50 120 160 Average Speed 172 | 139 173 175 Slowest Speed 200 | 200 190 190 Overloaded Moves . | . . . Propulsion Burnouts . | . . . Robots Hopped . | . . . Potential Cave-ins . | . . . Cave-ins Triggered . | . . . Exploration Rate (%) 34 | 4 73 25 Regions Visited 2 Branch Regions 1 Pre-discovered Areas 1 | . . 1 Known Exits Taken . | . . . Unknown Exits Taken 2 | 1 1 . Scrap Searched . | . . . Spaces Dug . | . . . Terrain Destroyed 8 | . . 8 Melee . | . . . Projectile . | . . . AOE 8 | . . 8 Terrain Rammed . | . . . Walls Destroyed . | . . . Machines Disabled . | . . . Actions | -11 -10 -10 --------- Run | Yrd Mat Sub Total 1170 | 70 643 457 Wait 58 | . 50 8 Move 969 | 50 512 407 Hop . | . . . Pick Up 24 | 4 20 . Fast Attach 8 | 7 . 1 Attach 6 | . 1 5 Detach . | . . . Swap 9 | 1 4 4 Drop 14 | . 11 3 Fire 82 | 8 45 29 Melee . | . . . Ram . | . . . Kick . | . . . Crush . | . . . Escape Stasis . | . . . Rewire . | . . . Trap . | . . . Miscellaneous . | . . . Route ------- -11/Scrapyard -10/Materials (discovered 5 exits: [*Mat x3] / [*Min] / *Sub) -10/Subcaves History --------- Turn | Location | Event 41 | -11/Scrapyard | Discovered new exit (range 15) 112 | -11/Scrapyard | Entered Materials 318 | -10/Materials | Build established: Mutant 438 | -10/Materials | Discovered new exit (range 4) 691 | -10/Materials | Discovered new exit (range 11) 742 | -10/Materials | Discovered new exit (range 9) 1088 | -10/Materials | Discovered new exit (range 14) 1150 | -10/Materials | Discovered new exit (range 6) 1217 | -10/Materials | Entered Subcaves 1218 | -10/Subcaves | Approached by a straggling Scientist 1295 | -10/Subcaves | Build established: Scavenger-Mutant 1410 | -10/Subcaves | Core integrity fell below 50% 1592 | -10/Subcaves | Visited Clippyterm 1598 | -10/Subcaves | Learned location of Extension (-4) 1686 | -10/Subcaves | Core integrity fell below 20% 2021 | -10/Subcaves | Build established: Mutant 2042 | -10/Subcaves | Destroyed by TQ-MXA(R) with Subdweller Laser Last Messages --------------- It looks like you're planning to spring a Derelict or three, would you like help? World map updated: -4/Extension. >>Record "Permadeath" It looks like you're defining "roguelike," quit while you're ahead. Please. 01674_ VO-JIR(R) suffers critical hit (Burn). 01675_ EM Pulse Gun destroyed. 01688_ VO-JIR(R) destroyed. 01691_ Acquired 20 matter. 01704_ 4U-KR2(R) destroyed. 01710_ Acquired 10 matter. 01712_ Dropped Aluminum Leg. 01771_ Sub. Optics shoots sparks and powers down. 01772_ Dropped Broken Sub. Optics. 01951_ Subatomizers dissect the Corrupted Lgt. Assault Rifle. 02008_ TQ-MXA(R): "ECOKILL!" 02015_ Acquired 10 matter. Map ----- +----------------------------------------------------+ | #???????????????????????????????????????????????? | | ##??????????????????????????????????????????????? | | #??????????????????????????????????????????????? | | ##??????????????????????????????????????????????? | | ##???????????????????????????????????????????????? | | #????????????????????????#########???????????????? | | ##????####??????????????## ##??????????????? | | ###### ########???????# #??????????????? | | ## ## #???????# #??????????????? | | ###????## #??????????????? | | ## #???## #???????????????? | | ##### ## ##??# #????##???????????? | | ##???# # ## # ####?# #???# ##??????????? | | ##????#### ## ### #??# #??????????? | | #???????? ## ### #??????????? | | #???????# ### # !& # #????????? | | #???????# #?# ## &%*& "" ???? | | #???????## ?# &### R "%|* """"" ? | | ##???????# ?# %### """#####" # ## ?? | | ##??????# ## %!### # ""##???###??#????? ?? | | ##?????# ## ###?# ## "#?#####??????????? | | #?????# %##?### #### ### ##?????????? | | ##???### ### # ### ## """"####??????? | | #????# ## "" # ###????? | | ##????# #### " #????? | | ##???# #???# # @ ####### | | ##?# ##????###### # ## ## | | #?## ????????????# ## | | #??#?????????????## ### ### | | ##?????????????????# #?### ##?#### | | ##??????????????????## #???### ###?????##### | | ##????????????????????####?????#####???????????### | | ?????????????????????????????????????????????????? | | ?????????????????????????????????????????????????? | | ?????????????????????????????????????????????????? | | ?????????????????????????????????????????????????? | | ?????????????????????????????????????????????????? | | ?????????????????????????????????????????????????? | | ?????????????????????????????????????????????????? | | ?????????????????????????????????????????????????? | | ?????????????????????????????????????????????????? | | ?????????????????????????????????????????????????? | | ?????????????????????????????????????????????????? | | ?????????????????????????????????????????????????? | | ?????????????????????????????????????????????????? | | ?????????????????????????????????????????????????? | | | | | | | | | +----------------------------------------------------+ Best States ------------- Heat Dissipation 39 Energy Generation 10 Energy Capacity 250 Matter Stores 300 Matter Capacity 300 Sight Range 21 Terrain Scan Density 10 Evasion (%) 55 Recoil Reduction 2 Item Schematics ----------------- None Robot Schematics ------------------ None Fabricated ------------ Nothing Repaired ---------- Nothing Alien Tech Used ----------------- None Achievements -------------- None Challenges ------------ None Game ------ Seed FusionNetworkNeutralizer Manual? 0 Play Time 00:13:14 Cumulative 340.4 hours Start 2025.10.11 @ 10:48:34 End 2025.10.11 @ 11:00:45 Sessions 1 Manual Loads 0 Difficulty Rogue Special Mode None Game No. 166 Rogue 152 Adventurer 14 Explorer 0 Win Type - Total 18 Types 15/0/1/1/0/0/0/0/1/0 Lore% 65 Gallery% 73 Achievement% 68 Wizard Run 0 Options --------- Layout 1 ASCII 0 Keyboard 0 Movement Arrows Keybinds 0 Fullscreen 1 Font 24/Smallcaps Map View 50x35 Zoom Use 0% Tactical HUD 1 Map Filters NONE Filters NONE Steam 1 RUN: d858a6a4-9eda-4613-9f35-ab838bf95956